bitfinex-derivatives/quotes_BTCF0:USTF0_20240923
["timestamp","ask_amount","ask_price","bid_price","bid_amount"]
[1727049601420,0.007,63613.0,63609.0,0.0470294]
[1727049601729,0.007,63613.0,63608.0,0.40783061]
[1727049602232,0.007,63613.0,63608.0,0.3608]
[1727049602533,0.0037,63621.0,63608.0,0.3608]
[1727049602729,0.0037,63625.0,63608.0,0.3608]
[1727049602917,0.0037,63628.0,63624.0,0.04695947]
[1727049603117,0.00442245,63633.0,63624.0,0.04695947]
[1727049603316,0.3645,63639.0,63621.0,0.3608]
[1727049603317,0.3645,63639.0,63621.0,0.40775947]
[1727049603525,0.3645,63639.0,63621.0,0.3608]
[1727049603917,0.3645,63639.0,63622.0,0.04694514]
[1727049604124,0.36903467,63639.0,63627.0,0.3608]
[1727049604323,0.004,63633.0,63627.0,0.3608]
[1727049606224,0.36733467,63639.0,63627.0,0.3608]
[1727049606628,0.36533467,63639.0,63627.0,0.3608]
[1727049606930,0.003,63633.0,63627.0,0.3608]
[1727049607316,0.00753467,63639.0,63621.0,0.3608]
[1727049607529,0.003,63639.0,63621.0,0.3608]
[1727049608029,0.003,63639.0,63627.0,0.3608]
[1727049609229,0.004,63639.0,63627.0,0.3608]
[1727049609637,0.001,63639.0,63627.0,0.3608]
[1727049610423,0.004,63639.0,63627.0,0.3608]
[1727049610938,0.004,63639.0,63622.0,0.04694514]
[1727049610939,0.3608,63631.0,63622.0,0.04694514]
[1727049611230,0.3608,63631.0,63621.0,0.3608]
[1727049611231,0.3645,63638.0,63621.0,0.3608]
[1727049611435,0.3608,63638.0,63621.0,0.3608]
[1727049611631,0.003,63639.0,63621.0,0.3608]
[1727049611632,0.003,63639.0,63628.0,0.3608]
[1727049612139,0.003,63639.0,63634.0,0.3608]
[1727049612638,0.0037,63648.0,63634.0,0.3608]
[1727049612831,0.0037,63652.0,63634.0,0.3608]
[1727049613026,0.003,63639.0,63634.0,0.3608]
[1727049613632,0.003,63639.0,63634.0,0.3618]
[1727049613843,0.004,63639.0,63634.0,0.3618]
[1727049614638,0.01,63639.0,63634.0,0.3628]
[1727049615237,0.01,63639.0,63636.0,0.3608]
[1727049615636,0.01,63639.0,63634.0,0.002]
[1727049615637,0.01,63639.0,63638.0,0.3608]
[1727049615837,0.01,63639.0,63634.0,0.3628]
[1727049616645,0.007,63639.0,63634.0,0.3618]
[1727049616938,0.007,63639.0,63638.0,0.001]
[1727049616939,0.012,63639.0,63638.0,0.001]
[1727049617341,0.009,63639.0,63636.0,0.001]
[1727049617540,0.003,63639.0,63634.0,0.3618]
[1727049617745,0.01,63639.0,63634.0,0.3628]
[1727049618339,0.003,63639.0,63634.0,0.3618]
[1727049618539,0.003,63639.0,63636.0,0.001]
[1727049618540,0.012,63639.0,63636.0,0.001]
[1727049618934,0.009,63639.0,63636.0,0.001]
[1727049619130,0.012,63639.0,63638.0,0.001]
[1727049619535,0.009,63639.0,63636.0,0.001]
[1727049619736,0.012,63639.0,63636.0,0.002]
[1727049620233,0.01354357,63639.0,63636.0,0.001]
[1727049620437,0.00754357,63639.0,63638.0,0.001]
[1727049620634,0.01454357,63639.0,63638.0,0.001]
[1727049621350,0.01654357,63639.0,63638.0,0.001]
[1727049622440,0.01654357,63639.0,63636.0,0.002]
[1727049623037,0.01354357,63639.0,63636.0,0.001]
[1727049623233,0.00754357,63639.0,63638.0,0.002]
[1727049623443,0.01854357,63639.0,63638.0,0.002]
[1727049623747,0.01854357,63639.0,63638.0,0.001]
[1727049624242,0.01854357,63639.0,63636.0,0.001]
[1727049624243,0.01354357,63639.0,63636.0,0.001]
[1727049624438,0.01654357,63639.0,63638.0,0.001]
[1727049624842,0.003,63639.0,63638.0,0.001]
[1727049625043,0.014,63639.0,63638.0,0.002]
[1727049625842,0.014,63639.0,63638.0,0.001]
[1727049626446,0.011,63639.0,63638.0,0.001]
[1727049626648,0.014,63639.0,63638.0,0.002]
[1727049628649,0.014,63639.0,63638.0,0.00641518]
[1727049628950,0.014,63639.0,63638.0,0.002]
[1727049631244,0.092564,63639.0,63638.0,0.080565]
[1727049631553,0.092564,63639.0,63638.0,0.12751014]
[1727049631761,0.014,63639.0,63638.0,0.080565]
[1727049632054,0.014,63639.0,63638.0,0.12759151]
[1727049632251,0.014,63639.0,63638.0,0.080565]
[1727049634752,0.642528,63639.0,63638.0,0.002]
[1727049634951,0.642528,63639.0,63631.0,0.3608]
[1727049634952,0.078571,63633.0,63632.0,0.10965055]
[1727049635159,0.158571,63633.0,63631.0,0.3608]
[1727049635456,0.127872,63632.0,63631.0,0.3608]
[1727049637043,0.130872,63632.0,63631.0,0.3618]
[1727049637243,0.134872,63632.0,63631.0,0.3618]
[1727049638355,0.134872,63632.0,63631.0,0.001]
[1727049638551,0.13929563,63632.0,63631.0,0.001]
[1727049639660,0.57866763,63632.0,63631.0,0.001]
[1727049640255,0.50009563,63632.0,63631.0,0.001]
[1727049641150,0.13929563,63632.0,63631.0,0.001]
[1727049641456,0.50009563,63632.0,63631.0,0.001]
[1727049641643,0.50009563,63632.0,63625.0,0.04703803]
[1727049641644,0.157148,63631.0,63625.0,0.04703803]
[1727049641844,0.078581,63625.0,63618.0,0.00132]
[1727049642051,0.078601,63609.0,63608.0,0.06261252]
[1727049642251,0.569388,63619.0,63605.0,0.3608]
[1727049642252,0.078602,63608.0,63605.0,0.42433252]
[1727049642457,0.078602,63608.0,63605.0,0.3608]
[1727049642458,0.078605,63606.0,63605.0,0.3608]
[1727049642846,0.0454,63608.0,63605.0,0.3608]
[1727049643248,0.0454,63608.0,63606.0,0.13]
[1727049643654,0.08313527,63609.0,63606.0,0.13]
[1727049644052,0.08313527,63609.0,63606.0,0.208604]
[1727049645454,0.001,63608.0,63606.0,0.213604]
[1727049645956,0.002,63608.0,63606.0,0.213604]
[1727049646179,0.001,63608.0,63606.0,0.208604]
[1727049646351,0.08413527,63609.0,63606.0,0.213604]
[1727049646551,0.08513527,63609.0,63606.0,0.223604]
[1727049647153,0.002,63608.0,63606.0,0.223604]
[1727049648071,0.080602,63608.0,63606.0,0.223604]
[1727049648755,0.079602,63608.0,63606.0,0.213604]
[1727049648960,0.079602,63608.0,63606.0,0.223604]
[1727049649155,0.078602,63608.0,63606.0,0.218604]
[1727049649360,0.078602,63608.0,63606.0,0.216604]
[1727049649556,0.079602,63608.0,63606.0,0.226604]
[1727049649959,0.158205,63608.0,63606.0,0.088604]
[1727049650162,0.080602,63608.0,63606.0,0.096604]
[1727049650958,0.080602,63608.0,63606.0,0.018]
[1727049651162,0.078603,63607.0,63606.0,0.018]
[1727049651862,0.287206,63607.0,63606.0,0.018]
[1727049652366,0.288206,63607.0,63606.0,0.018]
[1727049652555,1.360846,63607.0,63606.0,0.018]
[1727049653162,0.078617,63596.0,63594.0,0.0023587]
[1727049654371,0.078617,63596.0,63594.0,0.0809777]
[1727049655263,0.079617,63596.0,63595.0,0.3738]
[1727049655868,0.080617,63596.0,63595.0,0.3808]
[1727049659257,0.080617,63596.0,63595.0,0.02]
[1727049659258,0.289234,63596.0,63595.0,0.02]
[1727049659461,0.289234,63596.0,63581.0,0.0037]
[1727049659462,0.078634,63582.0,63581.0,0.0037]
[1727049659664,0.078634,63582.0,63572.0,0.42341252]
[1727049659665,0.078644,63574.0,63572.0,0.36172]
[1727049659872,0.13,63577.0,63572.0,0.3608]
[1727049660268,0.078645,63573.0,63572.0,0.3608]
[1727049660767,0.208645,63573.0,63572.0,0.3608]
[1727049661268,0.078645,63573.0,63572.0,0.3608]
[1727049661973,0.078645,63573.0,63572.0,0.3638]
[1727049662274,0.209641,63577.0,63572.0,0.3638]
[1727049662275,0.078642,63576.0,63572.0,0.4938]
[1727049662568,0.078642,63576.0,63573.0,0.078645]
[1727049662769,0.078642,63576.0,63572.0,0.4938]
[1727049662770,0.00648931,63577.0,63574.0,0.078643]
[1727049662967,0.00548931,63577.0,63574.0,0.078643]
[1727049663564,0.001,63577.0,63574.0,0.078643]
[1727049663764,0.002,63577.0,63576.0,0.078642]
[1727049664779,0.001,63577.0,63576.0,0.078642]
[1727049665473,0.001,63577.0,63576.0,0.080642]
[1727049665879,0.08312753,63581.0,63576.0,0.002]
[1727049666079,0.001,63577.0,63576.0,0.080642]
[1727049666275,0.3608,63590.0,63576.0,0.080642]
[1727049666276,0.39328,63603.0,63576.0,0.4928]
[1727049666477,0.00088,63597.0,63591.0,0.3608]
[1727049666676,0.208622,63592.0,63591.0,0.3608]
[1727049666875,0.2163372,63592.0,63591.0,0.3608]
[1727049667480,0.078627,63588.0,63580.0,0.078636]
[1727049667780,0.1377152,63592.0,63587.0,0.3608]
[1727049667781,0.078623,63592.0,63587.0,0.3608]
[1727049668584,0.078624,63591.0,63589.0,0.078625]
[1727049669384,0.078627,63588.0,63587.0,0.3608]
[1727049669684,0.15346762,63592.0,63587.0,0.3608]
[1727049669976,0.078627,63588.0,63587.0,0.3608]
[1727049670380,0.016,63591.0,63587.0,0.439427]
[1727049670985,0.208627,63588.0,63587.0,0.3608]
[1727049671782,0.216627,63588.0,63587.0,0.3608]
[1727049672173,1.288427,63588.0,63587.0,0.3608]
[1727049672386,1.177427,63588.0,63574.0,0.3608]
[1727049672685,0.13,63577.0,63574.0,0.3608]
[1727049672886,0.078643,63575.0,63574.0,0.3608]
[1727049673074,0.078649,63570.0,63567.0,0.0476]
[1727049674277,0.079644,63575.0,63567.0,0.0476]
[1727049674490,0.078644,63574.0,63570.0,0.078649]
[1727049674790,0.078644,63574.0,63568.0,0.13]
[1727049675176,0.078644,63574.0,63572.0,0.078646]
[1727049676082,0.078645,63573.0,63568.0,0.13]
[1727049676280,0.078647,63572.0,63568.0,0.07865]
[1727049676588,0.00433684,63574.0,63567.0,0.05276]
[1727049676589,0.20865,63569.0,63567.0,0.05276]
[1727049676797,0.439451,63568.0,63567.0,0.004]
[1727049677181,0.439451,63568.0,63567.0,0.003]
[1727049677593,0.078658,63563.0,63561.0,0.36315991]
[1727049677888,0.208658,63563.0,63561.0,0.36315991]
[1727049678774,0.209658,63563.0,63561.0,0.36615991]
[1727049679181,0.078659,63562.0,63561.0,0.36615991]
[1727049679789,0.078659,63562.0,63561.0,0.36715991]
[1727049679982,0.078668,63555.0,63551.0,0.10771252]
[1727049680183,0.078668,63555.0,63551.0,0.0451]
[1727049680184,0.13,63553.0,63551.0,0.0451]
[1727049680489,0.13,63553.0,63551.0,0.123772]
[1727049680684,0.13,63553.0,63549.0,0.3608]
[1727049680685,0.078674,63550.0,63549.0,0.3608]
[1727049680876,0.078674,63550.0,63543.0,0.439481]
[1727049680877,0.13,63550.0,63545.0,0.07868]
[1727049681083,0.0935,63554.0,63545.0,0.07868]
[1727049681084,0.13,63546.0,63545.0,0.07868]
[1727049681582,0.13,63550.0,63543.0,0.3608]
[1727049681780,0.002,63553.0,63552.0,0.078671]
[1727049681992,0.001,63553.0,63552.0,0.208671]
[1727049682692,0.001,63553.0,63552.0,0.078671]
[1727049682877,0.3608,63555.0,63553.0,0.078669]
[1727049683082,0.36515212,63555.0,63553.0,0.078669]
[1727049683279,0.36515212,63555.0,63554.0,0.078669]
[1727049684082,0.36515212,63555.0,63548.0,0.13]
[1727049684083,0.37311411,63555.0,63540.0,0.19261252]
[1727049684286,0.13,63552.0,63546.0,0.078678]
[1727049684883,0.37311411,63555.0,63542.0,0.0459]
[1727049684884,0.001,63553.0,63543.0,0.4908]
[1727049685086,0.001,63553.0,63552.0,0.078671]
[1727049686594,0.3608,63555.0,63543.0,0.3608]
[1727049686595,0.3608,63555.0,63554.0,0.078669]
[1727049687899,0.00449944,63556.0,63555.0,0.078668]
[1727049688104,0.078664,63558.0,63556.0,0.078666]
[1727049688285,0.078664,63558.0,63557.0,0.078665]
[1727049688593,0.00434006,63558.0,63557.0,0.078665]
[1727049688799,0.36396102,63568.0,63567.0,0.078653]
[1727049688992,0.36316102,63568.0,63567.0,0.078653]
[1727049689294,0.00236102,63568.0,63567.0,0.078653]
[1727049689495,0.13,63578.0,63567.0,0.078653]
[1727049689496,0.00445215,63573.0,63567.0,0.078653]
[1727049689698,0.3616,63581.0,63575.0,0.13]
[1727049689895,0.3608,63581.0,63576.0,0.124242]
[1727049690197,0.0023599,63585.0,63576.0,0.124242]
[1727049691098,0.00851,63577.0,63576.0,0.124242]
[1727049691298,0.0023599,63585.0,63576.0,0.124242]
[1727049691299,0.0023599,63585.0,63584.0,0.078632]
[1727049691492,0.0023599,63585.0,63584.0,0.569432]
[1727049693008,0.0063599,63585.0,63584.0,0.569432]
[1727049693197,0.0133599,63585.0,63584.0,0.569432]
[1727049693507,0.0133599,63585.0,63584.0,0.439432]
[1727049694211,0.0133599,63585.0,63578.0,0.0458]
[1727049694212,0.1333599,63585.0,63578.0,0.124438]
[1727049694395,0.2129899,63585.0,63584.0,0.001]
[1727049696414,0.2129899,63585.0,63578.0,0.078638]
[1727049696415,0.078633,63584.0,63578.0,0.078638]
[1727049696619,0.078633,63584.0,63578.0,0.079638]
[1727049696903,0.078633,63583.0,63579.0,0.078637]
[1727049698206,0.079633,63583.0,63580.0,0.078637]
[1727049698607,0.079633,63583.0,63578.0,0.001]
[1727049698608,0.001,63583.0,63582.0,0.569434]
[1727049699914,0.001,63583.0,63582.0,1.719908]
[1727049699915,0.002,63583.0,63582.0,1.719908]
[1727049700099,0.078614,63599.0,63597.0,0.078615]
[1727049700302,0.3608,63619.0,63596.0,0.13]
[1727049700303,0.00448467,63602.0,63596.0,0.13]
[1727049700499,0.36315899,63611.0,63601.0,0.3608]
[1727049700702,0.36315899,63611.0,63602.0,0.078609]
[1727049700703,0.078606,63606.0,63602.0,0.078609]
[1727049700903,0.078609,63602.0,63597.0,0.1412]
[1727049701203,0.011,63599.0,63597.0,0.0486]
[1727049701603,0.078614,63598.0,63597.0,0.0486]
[1727049701804,0.078618,63595.0,63593.0,0.07862]
[1727049702711,0.3608,63598.0,63597.0,0.001]
[1727049702914,0.487114,63598.0,63597.0,0.001]
[1727049703611,0.078619,63594.0,63593.0,0.004]
[1727049703812,0.078619,63594.0,63593.0,0.002]
[1727049704414,0.078621,63593.0,63582.0,0.41291916]
[1727049704620,0.078633,63583.0,63582.0,0.00235916]
[1727049705507,0.3608,63592.0,63582.0,0.00235916]
[1727049705713,0.006,63598.0,63582.0,0.00235916]
[1727049705714,0.006,63598.0,63597.0,0.078616]
[1727049705910,0.001,63598.0,63597.0,0.078616]
[1727049706312,0.078617,63596.0,63592.0,0.078621]
[1727049706614,0.0043373,63600.0,63591.0,0.3608]
[1727049706615,0.0043373,63600.0,63593.0,0.001]
[1727049706812,0.19,63605.0,63593.0,0.001]
[1727049707016,0.078588,63620.0,63593.0,0.001]
[1727049707017,0.078611,63601.0,63597.0,0.078615]
[1727049707208,0.003,63598.0,63597.0,0.078615]
[1727049707516,0.003,63598.0,63597.0,0.079615]
[1727049708619,0.003,63598.0,63597.0,0.001]
[1727049708823,0.078614,63598.0,63597.0,0.001]
[1727049709021,0.078619,63594.0,63593.0,0.002]
[1727049709413,0.078622,63592.0,63591.0,0.3608]
[1727049710225,0.19,63593.0,63582.0,0.08099216]
[1727049710522,0.19,63593.0,63582.0,0.00235916]
[1727049710523,0.078626,63589.0,63582.0,0.00235916]
[1727049711211,0.078626,63589.0,63584.0,0.078631]
[1727049711817,0.078626,63589.0,63587.0,0.078627]
[1727049712005,0.078626,63589.0,63588.0,0.078627]
[1727049712206,0.001,63592.0,63588.0,0.19]
[1727049712405,0.001,63592.0,63591.0,0.078623]
[1727049712916,0.001,63593.0,63591.0,0.078623]
[1727049713417,0.001,63593.0,63584.0,0.3608]
[1727049713418,0.001,63593.0,63592.0,0.078622]
[1727049713619,0.00454042,63596.0,63594.0,0.078619]
[1727049713820,0.126402,63609.0,63591.0,0.001]
[1727049713821,0.486909,63603.0,63591.0,0.001]
[1727049714013,0.07861,63602.0,63592.0,0.0481]
[1727049714212,0.07861,63602.0,63596.0,0.078616]
[1727049714416,0.4083,63603.0,63596.0,0.078616]
[1727049714610,0.078613,63599.0,63597.0,0.078615]
[1727049715116,0.078614,63598.0,63597.0,0.078615]
[1727049716114,0.41283136,63603.0,63592.0,0.0511]
[1727049716319,0.078617,63596.0,63593.0,0.07862]
[1727049716522,0.078617,63596.0,63594.0,0.078619]
[1727049718120,0.079617,63596.0,63594.0,0.079619]
[1727049718718,0.078618,63595.0,63594.0,0.001]
[1727049719121,0.078618,63595.0,63594.0,0.003]
[1727049719423,0.47176,63594.0,63582.0,0.0037]
[1727049719718,0.47176,63594.0,63577.0,0.08284]
[1727049719719,0.078637,63580.0,63577.0,0.07864]
[1727049720319,0.3608,63583.0,63574.0,0.0483]
[1727049720512,0.3608,63583.0,63567.0,0.0481]
[1727049720513,0.078647,63572.0,63568.0,0.07822774]
[1727049720719,0.078647,63572.0,63569.0,0.07865]
[1727049720927,0.078648,63571.0,63565.0,0.15688174]
[1727049721221,0.078645,63574.0,63569.0,0.07865]
[1727049721425,0.078637,63580.0,63565.0,0.078655]
[1727049721623,0.0829651,63580.0,63563.0,0.08192774]
[1727049721830,0.078653,63567.0,63563.0,0.0037]
[1727049722122,0.3608,63569.0,63562.0,0.078659]
[1727049722436,0.3608,63569.0,63561.0,0.4091]
[1727049722437,0.3608,63569.0,63561.0,0.3608]
[1727049722924,0.078657,63564.0,63561.0,0.3608]
[1727049723227,0.078659,63562.0,63561.0,0.3608]
[1727049723424,0.001,63567.0,63561.0,0.3608]
[1727049723617,0.078656,63565.0,63561.0,0.3608]
[1727049723919,0.3618,63569.0,63561.0,0.3608]
[1727049724121,0.36631489,63569.0,63561.0,0.3608]
[1727049724313,0.078659,63562.0,63561.0,0.3608]
[1727049724517,0.078668,63555.0,63554.0,0.0483]
[1727049725620,0.3608,63557.0,63554.0,0.0483]
[1727049726023,0.3608,63557.0,63554.0,0.2383]
[1727049726332,0.001,63562.0,63561.0,0.07866]
[1727049726537,0.00446221,63567.0,63564.0,0.078656]
[1727049726830,0.3608,63571.0,63553.0,0.0037]
[1727049726831,0.3608,63565.0,63553.0,0.0037]
[1727049727033,0.3608,63565.0,63558.0,0.3608]
[1727049727326,0.44379725,63569.0,63563.0,0.078658]
[1727049727530,0.07865,63569.0,63563.0,0.078658]
[1727049727723,0.001,63567.0,63563.0,0.078658]
[1727049728530,0.078653,63568.0,63564.0,0.078656]
[1727049729257,0.078654,63566.0,63559.0,0.078662]
[1727049729425,0.078657,63564.0,63560.0,0.078661]
[1727049729832,0.001,63569.0,63558.0,0.3608]
[1727049730130,0.001,63569.0,63557.0,0.0479]
[1727049730131,0.078659,63562.0,63557.0,0.0479]
[1727049730328,0.078659,63562.0,63552.0,0.00116]
[1727049730329,0.3608,63559.0,63552.0,0.00116]
[1727049730527,0.3608,63553.0,63543.0,0.082382]
[1727049730732,0.078679,63546.0,63543.0,0.078682]
[1727049732123,0.079679,63546.0,63543.0,0.078682]
[1727049732341,0.080679,63546.0,63543.0,0.078682]
[1727049734545,0.07868,63545.0,63543.0,0.078682]
[1727049735230,0.3608,63545.0,63530.0,0.3645]
[1727049735431,0.078686,63541.0,63538.0,0.078688]
[1727049735926,0.078681,63544.0,63542.0,0.078683]
[1727049736235,0.078682,63543.0,63542.0,0.078683]
[1727049737938,0.078686,63541.0,63539.0,0.078687]
[1727049738130,0.078686,63540.0,63539.0,0.078687]
[1727049738928,0.078686,63540.0,63537.0,0.0491]
[1727049738929,0.078689,63538.0,63537.0,0.0491]
[1727049740033,0.078689,63538.0,63537.0,0.12779]
[1727049741326,0.078689,63538.0,63537.0,0.0491]
[1727049741532,0.078701,63528.0,63523.0,0.3608]
[1727049741834,0.078701,63528.0,63527.0,0.078702]
[1727049742535,0.3608,63532.0,63526.0,0.127603]
[1727049742843,0.079701,63528.0,63527.0,0.078702]
[1727049743039,0.079701,63528.0,63527.0,0.123802]
[1727049743239,0.3608,63532.0,63531.0,0.078697]
[1727049743432,0.3608,63532.0,63531.0,0.740897]
[1727049743632,0.001,63538.0,63531.0,1.2622]
[1727049743941,0.078688,63539.0,63538.0,0.078689]
[1727049744636,0.00433857,63543.0,63539.0,0.078686]
[1727049744941,0.3608,63549.0,63540.0,0.0477]
[1727049744942,0.078685,63541.0,63540.0,0.0477]
[1727049746330,0.079685,63541.0,63540.0,0.0938]
[1727049747131,0.080685,63541.0,63540.0,0.0938]
[1727049748245,0.080685,63541.0,63540.0,0.172486]
[1727049751041,0.365329,63545.0,63540.0,1.244606]
[1727049751042,0.3608,63545.0,63540.0,1.244606]
[1727049751350,0.3608,63557.0,63544.0,0.13]
[1727049751537,0.078671,63553.0,63549.0,0.078674]
[1727049751742,0.13,63557.0,63549.0,0.078674]
[1727049751743,0.3608,63556.0,63549.0,0.078674]
[1727049752048,0.078674,63551.0,63549.0,0.078674]
[1727049752237,0.13,63552.0,63545.0,0.07868]
[1727049752444,0.19,63552.0,63542.0,0.3608]
[1727049752646,0.078678,63547.0,63542.0,0.439483]
[1727049752949,0.19,63552.0,63549.0,0.001]
[1727049753251,0.001,63545.0,63540.0,0.0938]
[1727049753447,0.078685,63541.0,63540.0,0.0938]
[1727049753655,0.078685,63541.0,63540.0,0.001]
[1727049753953,0.078685,63541.0,63531.0,0.00236063]
[1727049753954,0.078694,63534.0,63531.0,0.04866063]
[1727049754655,0.078695,63533.0,63531.0,0.04866063]
[1727049755055,0.078695,63533.0,63531.0,0.05166063]
[1727049755949,0.078696,63532.0,63531.0,0.00536063]
[1727049757154,0.078696,63532.0,63531.0,0.00636063]
[1727049757764,0.440496,63532.0,63531.0,0.00336063]
[1727049758058,0.441496,63532.0,63531.0,0.00336063]
[1727049758554,0.631496,63532.0,63531.0,0.00336063]
[1727049758957,0.078708,63523.0,63521.0,0.48762774]
[1727049759143,0.078708,63523.0,63521.0,0.4094]
[1727049759343,0.078708,63522.0,63521.0,0.4094]
[1727049760046,0.078708,63522.0,63521.0,0.0486]
[1727049760262,0.078708,63522.0,63521.0,0.0496]
[1727049760448,0.078708,63522.0,63521.0,0.001]
[1727049760959,0.079708,63522.0,63521.0,0.002]
[1727049761156,1.151988,63522.0,63521.0,0.002]
[1727049761451,1.20257886,63522.0,63521.0,0.002]
[1727049761954,1.20157886,63522.0,63521.0,0.002]
[1727049762162,0.078718,63514.0,63513.0,0.09564336]
[1727049762547,0.078718,63514.0,63513.0,0.0486]
[1727049763766,0.078718,63514.0,63509.0,0.0487]
[1727049763767,0.078721,63512.0,63511.0,0.04702214]
[1727049763950,0.001,63514.0,63508.0,0.3608]
[1727049763951,0.191,63514.0,63508.0,0.3608]
[1727049764149,0.078725,63509.0,63508.0,0.3608]
[1727049764758,0.191,63514.0,63507.0,0.00236193]
[1727049764759,0.078726,63508.0,63507.0,0.00236193]
[1727049765847,0.001,63508.0,63507.0,0.00236193]
[1727049766054,0.001,63508.0,63507.0,0.08108893]
[1727049766678,0.001,63509.0,63508.0,0.078726]
[1727049766959,0.00236236,63522.0,63508.0,0.6624]
[1727049767261,0.00236236,63522.0,63512.0,0.04693422]
[1727049767466,0.00236236,63522.0,63508.0,0.19]
[1727049767467,0.078714,63518.0,63516.0,0.078715]
[1727049767650,0.078714,63518.0,63517.0,0.0465]
[1727049768055,0.078714,63518.0,63517.0,0.125215]
[1727049768552,0.079714,63518.0,63517.0,0.125215]
[1727049768860,0.001,63518.0,63517.0,0.125215]
[1727049769058,0.0068568,63522.0,63517.0,0.125215]
[1727049769254,0.001,63518.0,63517.0,0.125215]
[1727049770164,0.079713,63518.0,63517.0,0.126215]
[1727049770663,0.078713,63518.0,63517.0,0.126215]
[1727049770861,0.079713,63518.0,63517.0,0.128215]
[1727049771063,0.080713,63518.0,63517.0,0.128215]
[1727049773068,0.080713,63518.0,63517.0,0.127215]
[1727049773260,0.002,63518.0,63517.0,0.127215]
[1727049773770,0.002,63518.0,63517.0,0.126215]
[1727049775859,0.002,63518.0,63517.0,0.256215]
[1727049776060,0.00236236,63522.0,63517.0,0.1775]
[1727049776259,0.0475,63538.0,63521.0,0.4908]
[1727049776466,0.0475,63538.0,63530.0,0.078698]
[1727049776467,0.13,63536.0,63530.0,0.078698]
[1727049776776,0.3608,63534.0,63530.0,0.078698]
[1727049777664,0.3608,63534.0,63523.0,0.04693159]
[1727049777858,0.3608,63534.0,63522.0,0.078708]
[1727049777859,0.3608,63534.0,63524.0,0.04693159]
[1727049778161,0.3608,63534.0,63522.0,0.078708]
[1727049778162,0.3688,63534.0,63533.0,0.078695]
[1727049778669,0.3608,63534.0,63533.0,0.078695]
[1727049779269,0.439494,63534.0,63533.0,0.078695]
[1727049779667,0.443494,63534.0,63533.0,0.078695]
[1727049780269,0.444494,63534.0,63533.0,0.080695]
[1727049780568,0.441494,63534.0,63533.0,0.082695]
[1727049781062,0.441494,63534.0,63533.0,0.004]
[1727049781868,0.441494,63534.0,63533.0,0.080695]
[1727049782175,0.09380651,63553.0,63533.0,0.080695]
[1727049782176,0.078675,63550.0,63533.0,0.3648]
[1727049782472,0.3608,63552.0,63544.0,0.078681]
[1727049782775,0.00443052,63546.0,63544.0,0.078681]
[1727049783274,0.00336149,63545.0,63544.0,0.078681]
[1727049784066,0.00236149,63545.0,63544.0,0.078681]
[1727049784370,0.00536149,63545.0,63544.0,0.078681]
[1727049784966,0.01236149,63545.0,63544.0,0.078681]
[1727049785369,0.078682,63543.0,63542.0,0.0495]
[1727049785579,0.208682,63543.0,63542.0,0.0495]
[1727049786673,0.209682,63543.0,63542.0,0.0525]
[1727049787278,0.209682,63543.0,63542.0,0.0555]
[1727049788171,0.079682,63543.0,63542.0,0.0555]
[1727049788664,0.209682,63543.0,63542.0,0.0555]
[1727049789063,0.209682,63543.0,63542.0,0.0545]
[1727049789270,0.209682,63543.0,63542.0,0.005]
[1727049789662,0.288364,63543.0,63542.0,0.005]
[1727049789867,0.131,63543.0,63542.0,0.005]
[1727049790080,1.07312,63543.0,63542.0,0.005]
[1727049790269,1.12192,63543.0,63542.0,0.005]
[1727049790470,1.12192,63543.0,63542.0,0.004]
[1727049790667,1.12092,63543.0,63532.0,0.0467]
[1727049790864,1.12092,63543.0,63526.0,0.3268]
[1727049790865,0.0787,63529.0,63526.0,0.3268]
[1727049791062,0.0787,63529.0,63524.0,0.09733159]
[1727049791063,0.0787,63529.0,63524.0,0.0963]
[1727049791285,0.0787,63529.0,63524.0,0.14323159]
[1727049792183,0.0787,63529.0,63528.0,0.078701]
[1727049793281,0.0797,63529.0,63528.0,0.078701]
[1727049793487,0.0807,63529.0,63528.0,0.078701]
[1727049794171,0.078702,63527.0,63524.0,0.22193759]
[1727049794574,0.078702,63527.0,63525.0,0.12563659]
[1727049794771,0.078703,63526.0,63525.0,0.12563659]
[1727049795078,0.078703,63526.0,63525.0,0.078705]
[1727049796385,0.08407777,63526.0,63525.0,0.078705]
[1727049796590,0.08407777,63526.0,63524.0,0.0963]
[1727049796591,0.078705,63525.0,63524.0,0.14323159]
[1727049796978,0.078705,63525.0,63524.0,0.0963]
[1727049798486,0.078705,63525.0,63524.0,0.14323159]
[1727049798877,0.079705,63525.0,63524.0,0.175006]
[1727049799276,0.079705,63525.0,63524.0,0.22193759]
[1727049799277,0.001,63525.0,63524.0,0.22193759]
[1727049799487,0.00437477,63526.0,63525.0,0.078705]
[1727049799679,0.3608,63533.0,63532.0,0.078696]
[1727049801184,0.3618,63533.0,63532.0,0.078696]
[1727049801692,0.44483027,63533.0,63532.0,0.078696]
[1727049801878,0.44583027,63533.0,63532.0,0.078696]
[1727049802885,0.44583027,63533.0,63532.0,0.208696]
[1727049802886,0.36713527,63533.0,63532.0,0.208696]
[1727049803091,0.36713527,63533.0,63532.0,0.078696]
[1727049803388,0.36613527,63533.0,63532.0,0.078696]
[1727049803584,0.36713527,63533.0,63532.0,0.078696]
[1727049804083,0.00633527,63533.0,63532.0,0.14127539]